fUSD/lending_fUSD_20240611
["ID","MTS","AMOUNT","RATE_DAILY","PERIOD"]
[329107807,1718109067401,-500.0,0.00024794,2]
[329107808,1718109067410,-500.0,0.00024794,2]
[329107809,1718109067420,-500.0,0.00024794,2]
[329107810,1718109067432,-435.65,0.00024794,2]
[329107811,1718109067442,-151.0,0.00024794,7]
[329107812,1718109067452,-1252.55,0.00024794,2]
[329107813,1718109067462,-151.0,0.00024794,7]
[329107814,1718109067472,-500.0,0.00024794,2]
[329107815,1718109067482,-500.0,0.00024794,2]
[329107816,1718109067492,-500.0,0.00024794,2]
[329107817,1718109067501,-500.0,0.00024794,2]
[329107818,1718109067511,-1730.69,0.00024794,2]
[329107819,1718109067521,-500.0,0.00024794,2]
[329107820,1718109067532,-542.87779683,0.00024794,2]
[329107821,1718109067541,-500.0,0.00024794,2]
[329107822,1718109067551,-500.0,0.00024794,2]
[329107823,1718109067560,-500.0,0.00024794,2]
[329107824,1718109067570,-500.0,0.00024794,2]
[329107825,1718109067580,-1139.55,0.00024794,2]
[329107826,1718109067590,-500.0,0.00024794,2]
[329107827,1718109067600,-500.0,0.00024794,2]
[329107828,1718109067611,-500.0,0.00024794,2]
[329107829,1718109067622,-500.0,0.00024794,2]
[329107830,1718109067633,-1826.5,0.00024794,2]
[329107831,1718109067643,-985.29,0.00024794,2]
[329107832,1718109067653,-553.4223316,0.00024794,2]
[329107833,1718109067663,-948.86,0.00024794,2]
[329107834,1718109067674,-500.0,0.00024794,2]
[329107835,1718109067685,-500.0,0.00024794,2]
[329107836,1718109067694,-500.0,0.00024794,2]
[329107837,1718109067704,-500.0,0.00024794,2]
[329107838,1718109067714,-151.0,0.00024794,7]
[329107839,1718109067725,-151.0,0.00024794,7]
[329107840,1718109067735,-151.0,0.00024794,7]
[329107841,1718109067746,-2005.45,0.00024794,2]
[329107842,1718109067756,-151.0,0.00024794,7]
[329107843,1718109067766,-500.0,0.00024794,2]
[329107844,1718109067776,-814.64,0.00024794,2]
[329107845,1718109067787,-500.0,0.00024794,2]
[329107846,1718109067798,-500.0,0.00024794,2]
[329107847,1718109067808,-1437.5,0.00024794,2]
[329107848,1718109067818,-500.0,0.00024794,2]
[329107849,1718109067828,-151.0,0.00024794,7]
[329107850,1718109067838,-500.0,0.00024794,2]
[329107851,1718109067848,-151.0,0.00024794,7]
[329107852,1718109067858,-500.0,0.00024794,2]
[329107853,1718109067868,-500.0,0.00024794,2]
[329107854,1718109067877,-500.0,0.00024794,2]
[329107855,1718109067888,-585.41,0.00024794,2]
[329107856,1718109067898,-500.0,0.00024794,2]
[329107857,1718109067908,-500.0,0.00024794,2]
[329107858,1718109067918,-500.0,0.00024794,2]
[329107859,1718109067928,-1087.12,0.00024794,2]
[329107860,1718109067938,-500.0,0.00024794,2]
[329107861,1718109067947,-1893.77,0.00024794,2]
[329107862,1718109067957,-500.0,0.00024794,2]
[329107863,1718109067967,-1314.21,0.00024794,2]
[329107864,1718109067977,-2272.5,0.00024794,2]
[329107865,1718109067987,-500.0,0.00024794,2]
[329107866,1718109067997,-526.53235766,0.00024794,2]
[329107867,1718109068008,-500.0,0.00024794,2]
[329107868,1718109068018,-500.0,0.00024794,2]
[329107869,1718109068030,-500.0,0.00024794,2]
[329107870,1718109068039,-237.36232477,0.00024794,2]
[329107871,1718109068049,-1238.04,0.00024794,2]
[329107872,1718109068058,-821.03,0.00024794,2]
[329107873,1718109068067,-500.0,0.00024794,2]
[329107874,1718109068078,-500.0,0.00024794,2]
[329107875,1718109068087,-500.0,0.00024794,2]
[329107876,1718109068097,-515.13,0.00024794,2]
[329107877,1718109068108,-500.0,0.00024794,2]
[329107878,1718109068118,-500.0,0.00024794,2]
[329107879,1718109068127,-1258.98,0.00024794,2]
[329107880,1718109068137,-500.0,0.00024794,2]
[329107881,1718109068146,-500.0,0.00024794,2]
[329107882,1718109068155,-500.0,0.00024794,2]
[329107883,1718109068165,-500.0,0.00024794,2]
[329107884,1718109068175,-500.0,0.00024794,2]
[329107885,1718109068187,-947.93,0.00024794,2]
[329107886,1718109068197,-528.34030669,0.00024794,2]
[329107887,1718109068207,-773.82,0.00024794,2]
[329107888,1718109068218,-500.0,0.00024794,2]
[329107889,1718109068228,-2167.05,0.00024794,2]
[329107890,1718109068238,-500.0,0.00024794,2]
[329107891,1718109068248,-500.0,0.00024794,2]
[329107892,1718109068258,-605.1,0.00024794,2]
[329107893,1718109068273,-643.73,0.00024794,2]
[329107894,1718109068283,-500.0,0.00024794,2]
[329107895,1718109068294,-500.0,0.00024794,2]
[329107896,1718109068304,-1234.39,0.00024794,2]
[329107897,1718109068314,-514.98661294,0.00024794,2]
[329107898,1718109068324,-1871.11,0.00024794,2]
[329107899,1718109068334,-1033.62,0.00024794,2]
[329107900,1718109068344,-500.0,0.00024794,2]
[329107901,1718109068354,-500.0,0.00024794,2]
[329107902,1718109068363,-164.811052,0.00024794,7]
[329107903,1718109068373,-164.811052,0.00024794,7]
[329107904,1718109068383,-3245.56,0.00024794,2]
[329107905,1718109068392,-500.0,0.00024794,2]
[329107906,1718109068402,-164.811052,0.00024794,7]
[329107907,1718109068412,-2369.61,0.00024794,2]
[329107908,1718109068421,-542.59575872,0.00024794,2]
[329107909,1718109068432,-951.33,0.00024794,2]
[329107910,1718109068442,-164.811052,0.00024794,7]
[329107911,1718109068451,-164.811052,0.00024794,7]
[329107912,1718109068462,-164.811052,0.00024794,7]
[329107913,1718109068472,-500.0,0.00024794,2]
[329107914,1718109068481,-1776.98,0.00024794,2]
[329107915,1718109068491,-500.0,0.00024794,2]
[329107916,1718109068500,-500.0,0.00024794,2]
[329107917,1718109068510,-500.0,0.00024794,2]
[329107918,1718109068519,-500.0,0.00024794,2]
[329107919,1718109068529,-438.54577126,0.00024794,2]
[329107920,1718109068538,-2360.4,0.00024794,2]
[329107921,1718109068548,-500.0,0.00024794,2]
[329107922,1718109068559,-541.06245442,0.00024794,2]
[329107923,1718109068570,-500.0,0.00024794,2]
[329107924,1718109068580,-1108.7,0.00024794,2]
[329107925,1718109068590,-500.0,0.00024794,2]
[329107926,1718109068600,-993.6,0.00024794,2]
[329107927,1718109068610,-2828.53,0.00024794,2]
[329107928,1718109068620,-500.0,0.00024794,2]
[329107929,1718109068630,-500.0,0.00024794,2]
[329107930,1718109068640,-719.89,0.00024794,2]
[329107931,1718109068650,-500.0,0.00024794,2]
[329107932,1718109068659,-1652.73,0.00024794,2]
[329107933,1718109068669,-3409.82,0.00024794,2]
[329107934,1718109068679,-151.0,0.00024794,7]
[329107935,1718109068689,-151.0,0.00024794,7]
[329107936,1718109068699,-1436.66,0.00024794,2]
[329107937,1718109068709,-151.0,0.00024794,7]
[329107938,1718109068719,-1754.97,0.00024794,2]
[329107939,1718109068729,-40007.36,0.00024794,2]
[329107940,1718109068739,-175.85705203,0.00024794,2]
[329107941,1718109068749,-151.0,0.00024794,7]
[329107942,1718109068759,-151.0,0.00024794,7]
[329107943,1718109068768,-151.0,0.00024794,7]
[329107944,1718109068778,-10729.22,0.00024794,2]
[329107945,1718109068788,-611.49,0.00024794,2]
[329107946,1718109068798,-557.95,0.00024794,2]
[329107947,1718109068809,-489.0,0.00024794,2]
[329107948,1718109068818,-545.87920197,0.00024794,2]
[329107949,1718109068828,-500.0,0.00024794,2]
[329107950,1718109068837,-500.0,0.00024794,2]
[329107951,1718109068847,-641.50219043,0.00024794,2]
[329107952,1718109068856,-500.0,0.00024794,2]
[329107953,1718109068866,-500.0,0.00024794,2]
[329107954,1718109068875,-4661.99,0.00024794,2]
[329107955,1718109068884,-2131.31,0.00024794,2]
[329107956,1718109068893,-500.0,0.00024794,2]
[329107957,1718109068903,-2687.42,0.00024794,2]
[329107958,1718109068912,-1373.41,0.00024794,2]
[329107959,1718109068922,-500.0,0.00024794,2]
[329107960,1718109068932,-500.0,0.00024794,2]
[329107961,1718109068942,-500.0,0.00024794,2]
[329107962,1718109068951,-3711.8,0.00024794,2]
[329107963,1718109068961,-4363.18,0.00024794,2]
[329107964,1718109068971,-500.0,0.00024794,2]
[329107965,1718109068981,-898.63,0.00024794,2]
[329107966,1718109068990,-500.0,0.00024794,2]
[329107967,1718109069000,-500.0,0.00024794,2]
[329107968,1718109069011,-969.358374,0.00024794,7]
[329107969,1718109069021,-969.358374,0.00024794,7]
[329107970,1718109069035,-520.45800968,0.00024794,2]
[329107971,1718109069045,-969.358374,0.00024794,7]
[329107972,1718109069055,-2364.39,0.00024794,2]
[329107973,1718109069066,-151.0,0.00024794,7]
[329107974,1718109069076,-547.5540212,0.00024794,2]
[329107975,1718109069086,-500.0,0.00024794,2]
[329107976,1718109069096,-151.0,0.00024794,7]
[329107977,1718109069106,-151.0,0.00024794,7]
[329107978,1718109069117,-559.98,0.00024794,2]
[329107979,1718109069127,-500.0,0.00024794,2]
[329107980,1718109069136,-969.358374,0.00024794,7]
[329107981,1718109069146,-969.358374,0.00024794,7]
[329107982,1718109069156,-1502.75,0.00024794,2]
[329107983,1718109069166,-500.0,0.00024794,2]
[329107984,1718109069176,-969.358374,0.00024794,7]
[329107985,1718109069187,-500.0,0.00024794,2]
[329107986,1718109069197,-500.0,0.00024794,2]
[329107987,1718109069207,-500.0,0.00024794,2]
[329107988,1718109069217,-500.0,0.00024794,2]
[329107989,1718109069227,-1672.38,0.00024794,2]
[329107990,1718109069237,-500.0,0.00024794,2]
[329107991,1718109069247,-500.0,0.00024794,2]
[329107992,1718109069257,-1338.19,0.00024794,2]
[329107993,1718109069271,-701.84,0.00024794,2]
[329107994,1718109069281,-788.62,0.00024794,2]
[329107995,1718109069291,-500.0,0.00024794,2]
[329107996,1718109069301,-29396.63,0.00024794,2]
[329107997,1718109069310,-151.0,0.00024794,7]
[329107998,1718109069332,-6127.79,0.00024794,2]
[329107999,1718109069345,-151.0,0.00024794,7]
[329108000,1718109069368,-500.0,0.00024794,2]
[329108001,1718109069377,-151.0,0.00024794,7]
[329108002,1718109069400,-1106.32,0.00024794,2]
[329108003,1718109069410,-500.0,0.00024794,2]
[329108004,1718109069420,-1970.42,0.00024794,2]
[329108005,1718109069430,-1461.66,0.00024794,2]
[329108006,1718109069440,-2264.97,0.00024794,2]
[329108007,1718109069450,-500.0,0.00024794,2]
[329108008,1718109069460,-500.0,0.00024794,2]
[329108009,1718109069469,-500.0,0.00024794,2]
[329108010,1718109069500,-1880.36,0.00024794,2]
[329108011,1718109069510,-500.0,0.00024794,2]
[329108012,1718109069520,-500.0,0.00024794,2]
[329108013,1718109069530,-500.0,0.00024794,2]
[329108014,1718109069542,-768.48,0.00024794,2]
[329108015,1718109069552,-151.0,0.00024794,7]
[329108016,1718109069561,-500.0,0.00024794,2]
[329108017,1718109069571,-500.0,0.00024794,2]
[329108018,1718109069580,-4010.33,0.00024794,2]
[329108019,1718109069590,-151.0,0.00024794,7]
[329108020,1718109069599,-500.0,0.00024794,2]
[329108021,1718109069610,-840.39,0.00024794,2]
[329108022,1718109069620,-500.0,0.00024794,2]
[329108023,1718109069645,-151.0,0.00024794,7]
[329108024,1718109069655,-500.0,0.00024794,2]
[329108025,1718109069665,-1327.69,0.00024794,2]
[329108026,1718109069675,-500.0,0.00024794,2]
[329108027,1718109069686,-500.0,0.00024794,2]
[329108028,1718109069695,-1055.71,0.00024794,2]
[329108029,1718109069705,-734.04,0.00024794,2]
[329108030,1718109069715,-12929.86,0.00024794,2]
[329108031,1718109069726,-1049.91,0.00024794,2]
[329108032,1718109069737,-9381.92,0.00024794,2]
[329108033,1718109069747,-500.0,0.00024794,2]
[329108034,1718109069756,-1562.94,0.00024794,2]
[329108035,1718109069767,-655.59,0.00024794,2]
[329108036,1718109069776,-3473.64,0.00024794,2]
[329108037,1718109069789,-263.86872,0.00024794,7]
[329108038,1718109069799,-14372.62,0.00024794,2]
[329108039,1718109069809,-500.0,0.00024794,2]
[329108040,1718109069818,-500.0,0.00024794,2]
[329108041,1718109069827,-1467.31,0.00024794,2]
[329108042,1718109069837,-1366.29,0.00024794,2]
[329108043,1718109069846,-890.0,0.00024794,2]
[329108044,1718109069856,-500.0,0.00024794,2]
[329108045,1718109069865,-500.0,0.00024794,2]
[329108046,1718109069875,-500.0,0.00024794,2]
[329108047,1718109069885,-579.80828203,0.00024794,2]
[329108048,1718109069895,-783.01,0.00024794,2]
[329108049,1718109069905,-500.0,0.00024794,2]
[329108050,1718109069915,-500.0,0.00024794,2]
[329108051,1718109069926,-2007.45,0.00024794,2]
[329108052,1718109069937,-1178.25998083,0.00024794,2]
[329108053,1718109070591,-2805.76001917,0.00024794,2]
[329108054,1718109070601,-500.0,0.00024794,2]
[329108055,1718109070611,-1937.12,0.00024794,2]
[329108056,1718109070622,-500.0,0.00024794,2]
[329108057,1718109070632,-813.72,0.00024794,2]
[329108058,1718109070642,-636.15,0.00024794,2]
[329108059,1718109070652,-3832.05,0.00024794,2]
[329108060,1718109070662,-559.92,0.00024794,2]
[329108061,1718109070672,-500.0,0.00024794,2]
[329108062,1718109070682,-500.0,0.00024794,2]
[329108063,1718109070691,-500.0,0.00024794,2]
[329108064,1718109070701,-500.0,0.00024794,2]
[329108065,1718109070710,-2727.66,0.00024794,2]
[329108066,1718109070721,-4406.12,0.00024794,2]
[329108067,1718109070732,-576.02754967,0.00024794,2]
[329108068,1718109070742,-1285.0,0.00024794,2]
[329108069,1718109070752,-922.65,0.00024794,2]
[329108070,1718109070762,-646.6,0.00024794,2]
[329108071,1718109070772,-823.99,0.00024794,2]
[329108072,1718109070782,-1089.12,0.00024794,2]
[329108073,1718109070791,-500.0,0.00024794,2]
[329108074,1718109070801,-2135.61,0.00024794,2]
[329108075,1718109070812,-500.0,0.00024794,2]
[329108076,1718109070822,-500.0,0.00024794,2]
[329108077,1718109070832,-500.0,0.00024794,2]
[329108078,1718109070842,-803.65,0.00024794,2]
[329108079,1718109070852,-2305.72,0.00024794,2]
[329108080,1718109070862,-681.23,0.00024794,2]
[329108081,1718109070872,-1072.06,0.00024794,2]
[329108082,1718109070882,-5049.41,0.00024794,2]
[329108083,1718109070892,-4416.35,0.00024794,2]
[329108084,1718109070903,-550.39062243,0.00024794,2]
[329108085,1718109070913,-500.0,0.00024794,2]
[329108086,1718109070923,-500.0,0.00024794,2]
[329108087,1718109070934,-500.0,0.00024794,2]
[329108088,1718109070944,-500.0,0.00024794,2]
[329108089,1718109070954,-610.8,0.00024794,2]
[329108090,1718109070965,-500.0,0.00024794,2]
[329108091,1718109070975,-500.0,0.00024794,2]
[329108092,1718109070985,-500.0,0.00024794,2]
[329108093,1718109070995,-1771.16,0.00024794,2]
[329108094,1718109071006,-565.0061849,0.00024794,2]
[329108095,1718109071016,-2500.4,0.00024794,2]
[329108096,1718109071030,-1425.88,0.00024794,2]
[329108097,1718109071040,-4615.8,0.00024794,2]
[329108098,1718109071050,-500.0,0.00024794,2]
[329108099,1718109071059,-568.58,0.00024794,2]
[329108100,1718109071070,-500.0,0.00024794,2]
[329108101,1718109071080,-655.98,0.00024794,2]
[329108102,1718109071090,-1071.22,0.00024794,2]
[329108103,1718109071100,-21811.04,0.00024794,2]
[329108104,1718109071113,-8601.68,0.00024794,2]
[329108105,1718109071123,-500.0,0.00024794,2]
[329108106,1718109071133,-4067.65,0.00024794,2]
[329108107,1718109071144,-2232.42,0.00024794,2]
[329108108,1718109071154,-8486.95,0.00024794,2]
[329108109,1718109071165,-151.0,0.00024794,7]
[329108110,1718109071175,-500.0,0.00024794,2]
[329108111,1718109071187,-151.0,0.00024794,7]
[329108112,1718109071197,-151.0,0.00024794,7]
[329108113,1718109071207,-4576.76,0.00024794,2]
[329108114,1718109071217,-500.0,0.00024794,2]
[329108115,1718109071227,-683.51,0.00024794,2]
[329108116,1718109071238,-815.43,0.00024794,2]
[329108117,1718109071247,-151.0,0.00024794,7]
[329108118,1718109071264,-269.300637,0.00024794,7]
[329108119,1718109071276,-500.0,0.00024794,2]
[329108120,1718109071286,-500.0,0.00024794,2]
[329108121,1718109071296,-3371.58,0.00024794,2]
[329108122,1718109071307,-1164.37,0.00024794,2]
[329108123,1718109071317,-8893.64,0.00024794,2]
[329108124,1718109071327,-2807.66,0.00024794,2]
[329108125,1718109071337,-500.0,0.00024794,2]
[329108126,1718109071349,-626.32,0.00024794,2]
[329108127,1718109071360,-705.89,0.00024794,2]
[329108128,1718109071370,-500.0,0.00024794,2]
[329108129,1718109071380,-7635.56,0.00024794,2]
[329108130,1718109071390,-156.76081132,0.00024794,2]
[329108131,1718109071403,-503.79,0.00024794,2]
[329108132,1718109071414,-619.51,0.00024794,2]
[329108133,1718109071425,-2083.22,0.00024794,2]
[329108134,1718109071437,-836.16,0.00024794,2]
[329108135,1718109071448,-3998.42,0.00024794,2]
[329108136,1718109071457,-5800.51,0.00024794,2]
[329108137,1718109071468,-500.0,0.00024794,2]
[329108138,1718109071478,-500.0,0.00024794,2]
[329108139,1718109071488,-500.0,0.00024794,2]
[329108140,1718109071498,-165.46336884,0.00024794,2]
[329108141,1718109071508,-1103.86,0.00024794,2]
[329108142,1718109071518,-585.26,0.00024794,2]
[329108143,1718109071528,-529.27,0.00024794,2]
[329108144,1718109071539,-500.0,0.00024794,2]
[329108145,1718109071550,-786.22,0.00024794,2]
[329108146,1718109071560,-2660.43,0.00024794,2]
[329108147,1718109071571,-608.06050624,0.00024794,2]
[329108148,1718109071581,-534.37677158,0.00024794,2]
[329108149,1718109071592,-2660.65,0.00024794,2]
[329108150,1718109071602,-4205.13,0.00024794,2]
[329108151,1718109071613,-500.0,0.00024794,2]
[329108152,1718109071623,-776.78,0.00024794,2]
[329108153,1718109071634,-6485.73,0.00024794,2]
[329108154,1718109071644,-1185.81,0.00024794,2]
[329108155,1718109071654,-500.0,0.00024794,2]
[329108156,1718109071665,-500.0,0.00024794,2]
[329108157,1718109071675,-981.94,0.00024794,2]
[329108158,1718109071687,-637.27,0.00024794,2]
[329108159,1718109071697,-500.0,0.00024794,2]
[329108160,1718109071707,-527.67,0.00024794,2]
[329108161,1718109071717,-500.0,0.00024794,2]
[329108162,1718109071727,-955.68,0.00024794,2]
[329108163,1718109071736,-546.46220347,0.00024794,2]
[329108164,1718109071746,-530.82913568,0.00024794,2]
[329108165,1718109071757,-871.67,0.00024794,2]
[329108166,1718109071766,-500.0,0.00024794,2]
[329108167,1718109071776,-982.29,0.00024794,2]
[329108168,1718109071786,-500.0,0.00024794,2]
[329108169,1718109071796,-1813.41,0.00024794,2]
[329108170,1718109071807,-2010.04,0.00024794,2]
[329108171,1718109071817,-500.0,0.00024794,2]
[329108172,1718109071827,-521.83,0.00024794,2]
[329108173,1718109071837,-840.39,0.00024794,2]
[329108174,1718109071847,-541.38,0.00024794,2]
[329108175,1718109071857,-4536.28,0.00024794,2]
[329108176,1718109071867,-5319.33,0.00024794,2]
[329108177,1718109071877,-5266.34,0.00024794,2]
[329108178,1718109071887,-612.45,0.00024794,2]
[329108179,1718109071897,-10846.64,0.00024794,2]
[329108180,1718109071907,-500.0,0.00024794,2]
[329108181,1718109071916,-500.0,0.00024794,2]
[329108182,1718109071926,-500.0,0.00024794,2]
[329108183,1718109071938,-4003.48,0.00024794,2]
[329108184,1718109071949,-670.57,0.00024794,2]
[329108185,1718109071958,-151.0,0.00024794,7]
[329108186,1718109071968,-1768.3,0.00024794,2]
[329108187,1718109071977,-729.08,0.00024794,2]
[329108188,1718109071987,-151.0,0.00024794,7]
[329108189,1718109071997,-500.0,0.00024794,2]
[329108190,1718109072007,-3467.33,0.00024794,2]
[329108191,1718109072017,-151.0,0.00024794,7]
[329108192,1718109072029,-2177.379068,0.00024794,7]
[329108193,1718109072041,-721.56,0.00024794,2]
[329108194,1718109072051,-2177.379068,0.00024794,7]
[329108195,1718109072060,-2177.379068,0.00024794,7]
[329108196,1718109072072,-500.0,0.00024794,2]
[329108197,1718109072082,-1098.49,0.00024794,2]
[329108198,1718109072092,-500.0,0.00024794,2]
[329108199,1718109072102,-2177.379068,0.00024794,7]
[329108200,1718109072113,-11856.6,0.00024794,2]
[329108201,1718109072123,-2177.379068,0.00024794,7]
[329108202,1718109072133,-2177.379068,0.00024794,7]
[329108203,1718109072142,-500.0,0.00024794,2]
[329108204,1718109072152,-562.63,0.00024794,2]
[329108205,1718109072162,-743.39,0.00024794,2]
[329108206,1718109072172,-283.298356,0.00024794,7]
[329108207,1718109072183,-5079.19,0.00024794,2]
[329108208,1718109072193,-500.0,0.00024794,2]
[329108209,1718109072203,-4424.2,0.00024794,2]
[329108210,1718109072213,-151.0,0.00024794,7]
[329108211,1718109072224,-151.0,0.00024794,7]
[329108212,1718109072234,-500.0,0.00024794,2]
[329108213,1718109072245,-151.0,0.00024794,7]
[329108214,1718109072256,-2713.37,0.00024794,2]
[329108215,1718109072275,-3374.22,0.00024794,2]
[329108216,1718109072285,-514.23237869,0.00024794,2]
[329108217,1718109072295,-593.2,0.00024794,2]
[329108218,1718109072304,-200.580879,0.00024794,7]
[329108219,1718109072314,-500.0,0.00024794,2]
[329108220,1718109072324,-200.580879,0.00024794,7]
[329108221,1718109072335,-200.580879,0.00024794,7]
[329108222,1718109072346,-500.0,0.00024794,2]
[329108223,1718109072356,-500.0,0.00024794,2]
[329108224,1718109072367,-3085.25,0.00024794,2]
[329108225,1718109072377,-500.0,0.00024794,2]
[329108226,1718109072387,-4421.18,0.00024794,2]
[329108227,1718109072398,-200.580879,0.00024794,7]
[329108228,1718109072411,-200.580879,0.00024794,7]
[329108229,1718109072420,-500.0,0.00024794,2]
[329108230,1718109072430,-2720.72,0.00024794,2]
[329108231,1718109072440,-500.0,0.00024794,2]
[329108232,1718109072450,-200.580879,0.00024794,7]
[329108233,1718109072462,-507.69,0.00024794,2]
[329108234,1718109072474,-607.22,0.00024794,2]
[329108235,1718109072483,-500.0,0.00024794,2]
[329108236,1718109072493,-630.14,0.00024794,2]
[329108237,1718109072503,-5576.69,0.00024794,2]
[329108238,1718109072513,-500.0,0.00024794,2]
[329108239,1718109072523,-500.0,0.00024794,2]
[329108240,1718109072533,-2240.53,0.00024794,2]
[329108241,1718109072543,-2005.71,0.00024794,2]
[329108242,1718109072554,-500.0,0.00024794,2]
[329108243,1718109072564,-500.0,0.00024794,2]
[329108244,1718109072574,-783.47,0.00024794,2]
[329108245,1718109072586,-592.42,0.00024794,2]
[329108246,1718109072597,-2874.33,0.00024794,2]
[329108247,1718109072610,-937.37,0.00024794,2]
[329108248,1718109072621,-500.0,0.00024794,2]
[329108249,1718109072631,-500.0,0.00024794,2]
[329108250,1718109072640,-2767.93,0.00024794,2]
[329108251,1718109072650,-1223.53,0.00024794,2]
[329108252,1718109072659,-151.0,0.00024794,7]
[329108253,1718109072669,-151.0,0.00024794,7]
[329108254,1718109072678,-500.0,0.00024794,2]
[329108255,1718109072690,-878.96,0.00024794,2]
[329108256,1718109072699,-151.0,0.00024794,7]
[329108257,1718109072709,-3089.59,0.00024794,2]
[329108258,1718109072719,-500.0,0.00024794,2]
[329108259,1718109072728,-1400.59,0.00024794,2]
[329108260,1718109072738,-151.0,0.00024794,7]
[329108261,1718109072747,-151.0,0.00024794,7]
[329108262,1718109072757,-577.05,0.00024794,2]
[329108263,1718109072766,-151.0,0.00024794,7]
[329108264,1718109072776,-500.0,0.00024794,2]
[329108265,1718109072786,-4628.46,0.00024794,2]
[329108266,1718109072796,-633.57,0.00024794,2]
[329108267,1718109072806,-151.0,0.00024794,7]
[329108268,1718109072816,-151.0,0.00024794,7]
[329108269,1718109072827,-151.0,0.00024794,7]
[329108270,1718109072837,-643.26,0.00024794,2]
[329108271,1718109072848,-500.10692162,0.00024794,2]
[329108272,1718109072859,-1633.92,0.00024794,2]
[329108273,1718109072869,-582.84,0.00024794,2]
[329108274,1718109072879,-526.99,0.00024794,2]
[329108275,1718109072889,-151.0,0.00024794,7]
[329108276,1718109072900,-151.0,0.00024794,7]
[329108277,1718109072910,-151.0,0.00024794,7]
[329108278,1718109072920,-1610.44,0.00024794,2]
[329108279,1718109072932,-2225.37,0.00024794,2]
[329108280,1718109072943,-151.0,0.00024794,7]
[329108281,1718109072953,-765.37,0.00024794,2]
[329108282,1718109073149,-151.0,0.00024794,7]
[329108283,1718109073159,-500.0,0.00024794,2]
[329108284,1718109073169,-803.93,0.00024794,2]
[329108285,1718109073182,-500.0,0.00024794,2]
[329108286,1718109073192,-501.36,0.00024794,2]
[329108287,1718109073201,-504.13,0.00024794,2]
[329108288,1718109073211,-794.08,0.00024794,2]
[329108289,1718109073221,-1093.63,0.00024794,2]
[329108290,1718109073231,-1269.73,0.00024794,2]
[329108291,1718109073241,-1509.24,0.00024794,2]
[329108292,1718109073250,-500.0,0.00024794,2]
[329108293,1718109073260,-417.750336,0.00024794,7]
[329108294,1718109073272,-417.750336,0.00024794,7]
[329108295,1718109073282,-417.750336,0.00024794,7]
[329108296,1718109073293,-500.0,0.00024794,2]
[329108297,1718109073304,-1541.38,0.00024794,2]
[329108298,1718109073315,-4421.02,0.00024794,2]
[329108299,1718109073325,-500.0,0.00024794,2]
[329108300,1718109073335,-500.0,0.00024794,2]
[329108301,1718109073345,-417.750336,0.00024794,7]
[329108302,1718109073356,-417.750336,0.00024794,7]
[329108303,1718109073366,-417.750336,0.00024794,7]
[329108304,1718109073376,-500.0,0.00024794,2]
[329108305,1718109073385,-543.34857433,0.00024794,2]
[329108306,1718109073396,-500.0,0.00024794,2]